Workbook

Sheet Index
B1: ='Input | General'!$B$1 -> TransGrid 2018-23 Revised Proposal - Capital expenditure sharing scheme model
B2: Index
C4: Model index
C6: Sheet Name | D6: Sheet Description
C7: Input | General | D7: Inputs NSP name, regulatory years for the prior and forecast regulatory control period etc.
C8: Input | Inflation and Disc Rate | D8: Inputs the inflation and discount rate
C9: Input | Reported Capex | D9: Inputs the reported capital expenditure from the prior regulatory control period as well as the AER's forecast etc.
C10: Calc | CESS Revenue Increments | D10: Calculates the CESS payments from the prior regulatory control period
C11: Output | Models | D11: Outputs the CESS revenue increments needed as a post tax revenue model input
C12: Lookup | Tables | D12: Includes the lookup tables used within the CESS model.
C14: End

Sheet Input | General
B1: =$D$6&" "&$D$8&" "&D7&" - "&"Capital expenditure sharing scheme model" -> TransGrid 2018-23 Revised Proposal - Capital expenditure sharing scheme model | G1: Key: | H1: Input | I1: Internal Link
B2: Input | General
B4: Input | General
C6: NSP Name | D6: TransGrid
C7: Determination stage | D7: Revised Proposal
C8: Determination years | D8: 2018-23
C10: Regulatory control period details
D11: Year 1 | E11: Year 2 | F11: Year 3 | G11: Year 4 | H11: Year 5
C12: Regulatory control period CESS applied in (regulatory years) | D12: 2014-15 | E12: 2015-16 | F12: 2016-17 | G12: 2017-18 | H12: n/a
C13: CESS to apply to this year's expenditure (Yes/No) | D13: No | E13: Yes | F13: Yes | G13: Yes | H13: No
C14: Actual or estimate year | D14: Actual | E14: Actual | F14: Actual | G14: Estimate | H14: n/a
D16: Year 1 | E16: Year 2 | F16: Year 3 | G16: Year 4 | H16: Year 5
C17: Regulatory control period CESS revenue increment applied in (regulatory years) | D17: 2018-19 | E17: 2019-20 | F17: 2020-21 | G17: 2021-22 | H17: 2022-23
C18: Regulatory control period prior to CESS applied in (regulatory years) | D18: 2009-10 | E18: 2010-11 | F18: 2011-12 | G18: 2012-13 | H18: 2013-14
B20: End

Sheet Input | Inflation and Disc Rate
B1: ='Input | General'!$B$1 -> TransGrid 2018-23 Revised Proposal - Capital expenditure sharing scheme model | H1: Key: | I1: Input | J1: Internal Link
C2: Input | Inflation and Discount rate
C4: Input | Inflation
D6: Source | E6: Unit
F7: ='Lookup | Tables'!$E$27 -> 2013-14 | G7: ='Lookup | Tables'!$E$28 -> 2014-15 | H7: ='Lookup | Tables'!$E$29 -> 2015-16 | I7: ='Lookup | Tables'!$E$30 -> 2016-17 | J7: ='Lookup | Tables'!$E$31 -> 2017-18 | K7: ='Lookup | Tables'!$E$32 -> 2018-19 | L7: ='Lookup | Tables'!$E$33 -> 2019-20 | M7: ='Lookup | Tables'!$E$34 -> 2020-21 | N7: ='Lookup | Tables'!$E$35 -> 2021-22 | O7: ='Lookup | Tables'!$E$36 -> 2022-23 | P7: ='Lookup | Tables'!$E$37 -> 2023-24
C8: Actual CPI Inflation Rate | D8: TNSP | E8: Per cent | G8: 0.01717557252 | H8: 0.01688555347 | I8: 0.0147601476 | J8: 0.02
C9: Forecast CPI Inflation Rate | D9: TNSP | E9: Per cent | K9: 0.02473798146 | L9: 0.02473798146 | M9: 0.02473798146 | N9: 0.02473798146 | O9: 0.02473798146 | P9: 0.02473798146
C10: ="CPI Index (base year "&F7&")" -> CPI Index (base year 2013-14) | D10: TNSP | E10: Index | F10: 1
C11: CPI Index | D11: TNSP | E11: Index | G11: =IF(G7<>"",(F10*(1+G8)),"") -> 1.017175573 | H11: =IF(H7<>"",(G11*(1+H8)),"") -> 1.034351145 | I11: =IF(I7<>"",(H11*(1+I8)),"") -> 1.049618321 | J11: =IF(J7<>"",(I11*(1+J8)),"") -> 1.070610687 | K11: =IF(K7<>"",(J11*(1+K9)),"") -> 1.097095434 | L11: 1.124235361 | M11: 1.152046674 | N11: 1.180545984 | O11: 1.209750308 | P11: 1.239677089
C13: Input | Discount rate
D15: Source | E15: Unit | G15: ='Lookup | Tables'!$E$28 -> 2014-15 | H15: ='Lookup | Tables'!$E$29 -> 2015-16 | I15: ='Lookup | Tables'!$E$30 -> 2016-17 | J15: ='Lookup | Tables'!$E$31 -> 2017-18 | K15: ='Lookup | Tables'!$E$32 -> 2018-19 | L15: ='Lookup | Tables'!$E$33 -> 2019-20 | M15: ='Lookup | Tables'!$E$34 -> 2020-21 | N15: ='Lookup | Tables'!$E$35 -> 2021-22 | O15: ='Lookup | Tables'!$E$36 -> 2022-23
C16: Real Vanilla WACC | D16: AER | E16: Per cent | H16: 0.04267087649 | I16: 0.04187284015 | J16: 0.04082620464
D17: TNSP | E17: Per cent | K17: 0.03915779975 | L17: 0.03915779975 | M17: 0.03915779975 | N17: 0.03915779975 | O17: 0.03915779975
C18: Nominal Vanilla WACC (fixed, real, time varying) | D18: Calculated | E18: Per cent | G18: =IF(AND('Input | Inflation and Disc Rate'!H8<>"",G16<>""),((1+G16)*(1+'Input | Inflation and Disc Rate'!H8)-1),"") ->  | H18: =IF(AND(H8<>"",H16<>""),((1+H16)*(1+H8)-1),"") -> 0.06027695133 | I18: =IF(AND(I8<>"",I16<>""),((1+I16)*(1+I8)-1),"") -> 0.05725103705 | J18: =IF(AND(J8<>"",J16<>""),((1+J16)*(1+J8)-1),"") -> 0.06164272873 | K18: =IF(AND(K9<>"",K17<>""),((1+K17)*(1+K9)-1),"") -> 0.06486446613 | L18: =IF(AND(L9<>"",L17<>""),((1+L17)*(1+L9)-1),"") -> 0.06486446613 | M18: =IF(AND(M9<>"",M17<>""),((1+M17)*(1+M9)-1),"") -> 0.06486446613 | N18: =IF(AND(N9<>"",N17<>""),((1+N17)*(1+N9)-1),"") -> 0.06486446613 | O18: =IF(AND(O9<>"",O17<>""),((1+O17)*(1+O9)-1),"") -> 0.06486446613
B20: End

Sheet Input | Reported Capex
B1: ='Input | General'!$B$1 -> TransGrid 2018-23 Revised Proposal - Capital expenditure sharing scheme model | I1: Key: | J1: Input | K1: Internal Link
B2: Input | Capex
B4: Input | Capex Allowance
D6: Source | E6: Unit | F6: Basis | H6: n/a | I6: 2015-16 | J6: 2016-17 | K6: 2017-18 | L6: n/a
C8: Total capex allowance | D8: AER | E8: $millions | F8: 2013-14 | I8: 304.6056259 | J8: 235.3295741 | K8: 219.7842303
C9: Total excludable capex | D9: AER | E9: $millions | F9: 2013-14 | I9: 2.657220061 | J9: 2.657220061 | K9: 2.657220061
C11: Total capex allowance applicable to CESS | D11: Calculated | E11: $millions | F11: 2013-14 | H11: =IF(H6="", "", H8-H9) -> 0 | I11: =IF(I6="", "", I8-I9) -> 301.9484058 | J11: =IF(J6="", "", J8-J9) -> 232.6723541 | K11: 217.1270103 | L11: 0
B13: Input | Actual / Estimate Capex
D15: Source | E15: Unit | F15: Basis | H15: n/a | I15: 2015-16 | J15: 2016-17 | K15: 2017-18 | L15: n/a
C17: Total capex | D17: TNSP | E17: $millions | F17: nominal | I17: 247.264833 | J17: 184.75 | K17: 227.4815232
C18: Asset Disposals | D18: TNSP | E18: $millions | F18: nominal | I18: 2.86817991 | J18: 1.91676641 | K18: 3.883826534
C19: NCIPAP | D19: TNSP | E19: $millions | F19: nominal | I19: 7.10015156 | J19: 8.11062769 | K19: 3.16916597
C20: Total excludable capex | D20: TNSP | E20: $millions | F20: nominal | I20: =I18+I19 -> 9.96833147 | J20: =J18+J19 -> 10.0273941 | K20: =K18+K19 -> 7.052992505
C22: Total actual capex applicable to CESS | D22: Calculated | E22: $millions | F22: nominal | H22: =IF(H15="", "", H17-H20) -> 0 | I22: =IF(I15="", "", I17-I20) -> 237.2965015 | J22: =IF(J15="", "", J17-J20) -> 174.7226059 | K22: =IF(K15="", "", K17-K20) -> 220.4285307 | L22: =IF(L15="", "", L17-L20) -> 0
B24: Input | Capex Deferred to following regulatory period
H26: ='Input | General'!D17 -> 2018-19 | I26: ='Input | General'!E17 -> 2019-20 | J26: ='Input | General'!F17 -> 2020-21 | K26: ='Input | General'!G17 -> 2021-22 | L26: ='Input | General'!H17 -> 2022-23
C28: Capex deferred and re-proposed | D28: TNSP | E28: $millions | F28: nominal | H28: 13.03150532 | I28: 26.62730498 | J28: 0 | K28: 0 | L28: 0
B30: End

Sheet Calc | CESS Revenue Increments
B1: ='Input | General'!$B$1 -> TransGrid 2018-23 Revised Proposal - Capital expenditure sharing scheme model | K1: Key: | L1: Input | M1: Internal Link
B2: Input | CESS Payments
B4: Calc | NPV of CESS payments
C6: Regulatory period 1
C7: Year | D7: n/a | E7: 2015-16 | F7: 2016-17 | G7: 2017-18 | H7: n/a
C8: Finance rate (Real WACC): | E8: ='Input | Inflation and Disc Rate'!H16 -> 0.04267087649 | F8: ='Input | Inflation and Disc Rate'!I16 -> 0.04187284015 | G8: ='Input | Inflation and Disc Rate'!J16 -> 0.04082620464
C9: Discount rate: | E9: ='Input | Inflation and Disc Rate'!H18 -> 0.06027695133 | F9: ='Input | Inflation and Disc Rate'!I18 -> 0.05725103705 | G9: ='Input | Inflation and Disc Rate'!J18 -> 0.06164272873
C10: Capex allowance | E10: ='Input | Reported Capex'!I11*'Input | Inflation and Disc Rate'!G11*(1+'Input | Inflation and Disc Rate'!H8)^0.5 -> 309.716756 | F10: ='Input | Reported Capex'!J11*'Input | Inflation and Disc Rate'!H11*(1+'Input | Inflation and Disc Rate'!I8)^0.5 -> 242.4345347 | G10: ='Input | Reported Capex'!K11*'Input | Inflation and Disc Rate'!I11*(1+'Input | Inflation and Disc Rate'!J8)^0.5 -> 230.1682103
C11: Actual capex | E11: ='Input | Reported Capex'!I22 -> 237.2965015 | F11: ='Input | Reported Capex'!J22 -> 174.7226059 | G11: ='Input | Reported Capex'!K22 -> 220.4285307
C12: Underspend | E12: =(E10-E11) -> 72.42025447 | F12: =(F10-F11) -> 67.71192877 | G12: 9.739679563
C13: Underspend + 1/2 Nominal WACC | E13: =E12*(1+E9)^0.5 -> 74.57095533 | F13: =F12*(1+F9)^0.5 -> 69.62324239 | G13: =G12*(1+G9)^0.5 -> 10.03538096
C14: Year 1 benefit | E14: =$D$12*E$8 -> 0 | F14: =$D$12*F$8 -> 0 | G14: =$D$12*G$8 -> 0
C15: Year 2 benefit | F15: =$E$13*$F$8 -> 3.122497692 | G15: =$E$13*G$8 -> 3.044449082
C16: Year 3 benefit | G16: =$F$13*G$8 -> 2.842452742
C17: Year 4 benefit
C18: Year 5 benefit
C19: Total financing benefit | E19: =SUM(E14:E18) -> 0 | F19: =SUM(F14:F18) -> 3.122497692 | G19: 5.886901824
C20: Discount factor (middle of year)* | E20: =(1+E$9)^(0.5)*(1+F$9)*(1+G$9) -> 1.155756035 | F20: =(1+F$9)^(0.5)*(1+G$9) -> 1.091609859 | G20: =(1+G$9)^(0.5) -> 1.030360485
C21: Discount factor (end of year)** | E21: =F21*(1+F$9) -> 1.122422876 | F21: =G21*(1+G$9) -> 1.061642729 | G21: 1
C22: NPV underspend | E22: =E12*E20 -> 83.70014614 | F22: 73.91500903 | G22: =G12*G20 -> 10.03538096
C23: NPV financing benefit | E23: =E19*E21 -> 0 | F23: =F19*F21 -> 3.31497697 | G23: =G19*G21 -> 5.886901824
C25: Regulatory period 2
C26: Year | D26: ='Input | General'!$D$17 -> 2018-19 | E26: ='Input | General'!$E$17 -> 2019-20 | F26: ='Input | General'!$F$17 -> 2020-21 | G26: ='Input | General'!$G$17 -> 2021-22 | H26: ='Input | General'!$H$17 -> 2022-23
C27: Discount rate: | D27: ='Input | Inflation and Disc Rate'!$K$18 -> 0.06486446613 | E27: ='Input | Inflation and Disc Rate'!$L$18 -> 0.06486446613 | F27: ='Input | Inflation and Disc Rate'!$M$18 -> 0.06486446613 | G27: ='Input | Inflation and Disc Rate'!$N$18 -> 0.06486446613 | H27: ='Input | Inflation and Disc Rate'!$O$18 -> 0.06486446613
C28: Increase in forecast capex in regulatory period 2 attributable to capex deferred in regulatory period 1 | D28: ='Input | Reported Capex'!H28 -> 13.03150532 | E28: ='Input | Reported Capex'!I28 -> 26.62730498 | F28: ='Input | Reported Capex'!J28 -> 0 | G28: ='Input | Reported Capex'!K28 -> 0 | H28: ='Input | Reported Capex'!L28 -> 0
C29: Discount factor (middle of year 5) | D29: =1/(1+D27)^(0.5) -> 0.9690648307 | E29: =1/((1+E27)^(0.5)*(1+D27)) -> 0.9100358417 | F29: =1/((1+F27)^(0.5)*(1+E27)*(1+D27)) -> 0.8546025063 | G29: =1/((1+G27)^(0.5)*(1+F27)*(1+E27)*(1+D27)) -> 0.8025458014 | H29: =1/((1+H27)^(0.5)*(1+G27)*(1+F27)*(1+E27)*(1+D27)) -> 0.7536600449
C30: NPV of increase in forecast capex from deferred capex | D30: =D28*D29 -> 12.62837349 | E30: =E28*E29 -> 24.2318019 | F30: 0 | G30: 0 | H30: 0
C32: CESS calculation (post-adjustment)
C33: Total underspend (NPV) adjusted for deferrals | D33: =SUM(D22:H22)-SUM(D30:H30) -> 130.7903607
C34: Relevant sharing ratio | D34: 0.3
C35: Consumer share | D35: =(1-D34)*D33 -> 91.55325251
C36: NSP share | D36: =D34*D33 -> 39.23710822
C37: Total NSP financing benefit (NPV) | D37: =SUM(D23:H23) -> 9.201878794
C38: NPV of CESS payments (post-adjustment) | D38: =D36-D37 -> 30.03522943
B40: Calc | Total CESS Payments
D42: ='Input | General'!D17 -> 2018-19 | E42: ='Input | General'!E17 -> 2019-20 | F42: ='Input | General'!F17 -> 2020-21 | G42: ='Input | General'!G17 -> 2021-22 | H42: ='Input | General'!H17 -> 2022-23
C43: =CONCATENATE("CESS Payment Per Year ($", 'Output | Models'!F4," million)") -> CESS Payment Per Year ($2017-18 million) | D43: =-PMT('Input | Inflation and Disc Rate'!K17,5,'Calc | CESS Revenue Increments'!$D$38) -> 6.730772522 | E43: =-PMT('Input | Inflation and Disc Rate'!L17,5,'Calc | CESS Revenue Increments'!$D$38) -> 6.730772522 | F43: =-PMT('Input | Inflation and Disc Rate'!M17,5,'Calc | CESS Revenue Increments'!$D$38) -> 6.730772522 | G43: =-PMT('Input | Inflation and Disc Rate'!N17,5,'Calc | CESS Revenue Increments'!$D$38) -> 6.730772522 | H43: =-PMT('Input | Inflation and Disc Rate'!O17,5,'Calc | CESS Revenue Increments'!$D$38) -> 6.730772522
C45: =CONCATENATE("Total CESS Payment ($", 'Output | Models'!$F$4," million)") -> Total CESS Payment ($2017-18 million) | D45: =SUM(D43:H43) -> 33.65386261
C47: Notes
C48: * Capex is assumed to occur mid-year. Hence, a mid-year discount rate is required for capex allowance, actual capex and underspend.
C49: ** The financing benefit is calculated on an end of year basis. Hence, an end of year discount rate is required.
B51: End

Sheet Output | Models
B1: ='Input | General'!$B$1 -> TransGrid 2018-23 Revised Proposal - Capital expenditure sharing scheme model | K1: Key: | L1: Input | M1: Internal Link
B2: Output | Models
B4: Inputs for Post Tax Revenue Model | E4: $millions | F4: 2017-18 | J4: Note. The dollar base should be consistent with the post tax revenue model
C6: Revenue Adjustments | D6: Source | E6: Unit | F6: Basis | J6: ='Calc | CESS Revenue Increments'!D42 -> 2018-19 | K6: ='Calc | CESS Revenue Increments'!E42 -> 2019-20 | L6: ='Calc | CESS Revenue Increments'!F42 -> 2020-21 | M6: ='Calc | CESS Revenue Increments'!G42 -> 2021-22 | N6: ='Calc | CESS Revenue Increments'!H42 -> 2022-23 | O6: Total
C8: CESS increments as per NER 6A.5.4(a)(5) | D8: Calc | CESS Revenue Increments | E8: =$E$4 -> $millions | F8: =$F$4 -> 2017-18 | J8: ='Calc | CESS Revenue Increments'!D43 -> 6.730772522 | K8: ='Calc | CESS Revenue Increments'!E43 -> 6.730772522 | L8: ='Calc | CESS Revenue Increments'!F43 -> 6.730772522 | M8: ='Calc | CESS Revenue Increments'!G43 -> 6.730772522 | N8: ='Calc | CESS Revenue Increments'!H43 -> 6.730772522 | O8: =SUM(J8:N8) -> 33.65386261
B11: End

Sheet Lookup | Tables
B1: ='Input | General'!$B$1 -> TransGrid 2018-23 Revised Proposal - Capital expenditure sharing scheme model | I1: Key: | J1: Input | K1: Internal Link
B2: Lookup | Tables
B4: Unit Denominations
C6: Denominations | E6: Ref
C7: Dollars | E7: $dollars
C8: Thousands | E8: $000
C9: Millions | E9: $millions
C11: Actual | E11: Actual
C12: Estimate | E12: Estimate
C13: not applicable | E13: n/a
B16: Years
C18: =B16 -> Years | E18: Ref
C19: not applicable | E19: n/a
C20: nominal | E20: nominal
C21: 2007-08 | E21: 2007-08
C22: 2008-09 | E22: 2008-09
C23: 2009-10 | E23: 2009-10
C24: 2010-11 | E24: 2010-11
C25: 2011-12 | E25: 2011-12
C26: 2012-13 | E26: 2012-13
C27: 2013-14 | E27: 2013-14
C28: 2014-15 | E28: 2014-15
C29: 2015-16 | E29: 2015-16
C30: 2016-17 | E30: 2016-17
C31: 2017-18 | E31: 2017-18
C32: 2018-19 | E32: 2018-19
C33: 2019-20 | E33: 2019-20
C34: 2020-21 | E34: 2020-21
C35: 2021-22 | E35: 2021-22
C36: 2022-23 | E36: 2022-23
C37: 2023-24 | E37: 2023-24
B39: End
